[Event "Faroese-ch Open 2025"]
[Site "Torshavn"]
[Date "2025.04.13"]
[Round "2.1"]
[White "Staksberg, Luca Eydun"]
[Black "Morkore, Mortan"]
[Result "1-0"]
[Annotator "NA"]
[ECO "E60"]
[WhiteElo "1692"]
[BlackElo "1681"]
[PlyCount "81"]
[EventDate "2025.04.11"]
[EventType "swiss"]
[EventCountry "FAI"]
[SourceTitle "playchess.com"]
[Source "ChessBase"]
[SourceQuality "1"]
[TimeControl "40/5400+30:900+30"]

1. d4 {[%emt 0:00:02]} Nf6 {[%emt 0:00:06]} 2. c4 {[%emt 0:00:11]} g6 {[%emt 0:00:07]} 3. Nf3 {[%emt 0:00:31]} Bg7 {[%emt 0:00:28]} 4. g3 {[%emt 0:01:19]} O-O {[%emt 0:00:54]} 5. Bg2 {[%emt 0:00:41]} d6 {[%emt 0:00:21]} 6. O-O {[%emt 0:02:14]} a5 {[%emt 0:04:43]} 7. Nc3 {[%emt 0:02:33]} e5 {[%emt 0:03:36]} 8. dxe5 {[%emt 0:03:02]} dxe5 {[%emt 0:03:01]} 9. Qxd8 {[%emt 0:02:43]} Rxd8 {[%emt 0:00:12]} 10. Bg5 {[%emt 0:07:50]} Re8 {[%emt 0:10:10]} 11. Bxf6 {[%emt 0:03:37]} Bxf6 {[%emt 0:01:37]} 12. Nd5 {[%emt 0:00:43]} Bd8 {[%emt 0:00:09]} 13. Nd2 {[%emt 0:03:51]} c6 {[%emt 0:01:27]} 14. Nc3 {[%emt 0:01:59]} f5 {[%emt 0:05:26]} 15. Rfd1 {[%emt 0:10:32]} Bf6 {[%emt 0:04:46]} 16. e3 {[%emt 0:14:29]} Na6 {[%emt 0:05:05]} 17. Nb3 {[%emt 0:05:15]} e4 {[%emt 0:06:38]} 18. Nd4 {[%emt 0:07:23]} Nb4 {[%emt 0:05:29]} 19. Rab1 {[%emt 0:03:12]} Rd8 {[%emt 0:06:50]} 20. Bf1 {[%emt 0:07:27]} c5 {[%emt 0:05:30]} 21. Ndb5 {[%emt 0:00:49]} Rxd1 {[%emt 0:03:32]} 22. Rxd1 {[%emt 0:00:01]} Nd3 {[%emt 0:09:10]} 23. Bxd3 {[%emt 0:00:35]} exd3 {[%emt 0:00:01]} 24. Rxd3 {[%emt 0:00:23]} Be6 {[%emt 0:02:29]} 25. b3 {[%emt 0:03:18]} Rd8 {[%emt 0:04:04]} 26. Rxd8+ {[%emt 0:00:47]} Bxd8 {[%emt 0:00:01]} 27. f3 {[%emt 0:01:10]} Kg7 {[%emt 0:01:27]} 28. Kf2 {[%emt 0:01:24]} Kf6 {[%emt 0:02:54]} 29. e4 {[%emt 0:03:03]} b6 {[%emt 0:02:30]} 30. Nd5+ {[%emt 0:01:39]} Kf7 {[%emt 0:01:46]} 31. Nbc7 {[%emt 0:00:55]} h6 {[%emt 0:02:06]} 32. Nxe6 {[%emt 0:00:54]} Kxe6 {[%emt 0:00:03]} 33. Ke3 {[%emt 0:00:50]} g5 {[%emt 0:01:02]} 34. a4 {[%emt 0:02:10]} h5 {[%emt 0:01:49]} 35. exf5+ {[%emt 0:01:33]} Kxf5 {[%emt 0:00:24]} 36. h3 {[%emt 0:02:09]} Ke6 {[%emt 0:02:10]} 37. Ke4 {[%emt 0:00:19]} Kf7 {[%emt 0:02:34]} 38. Kf5 {[%emt 0:00:17]} Kg7 {[%emt 0:00:02]} 39. Ke6 {[%emt 0:00:51]} Kg6 {[%emt 0:01:04]} 40. Kd7 {[%emt 0:00:00]} Bf6 {[%emt 0:00:00]} 41. g4 {[%emt 0:02:12]} 1-0

[Event "Faroese-ch Open 2025"]
[Site "Torshavn"]
[Date "2025.04.13"]
[Round "2.2"]
[White "Anthoniussen, Mannbjorn"]
[Black "Kosini, Bogi a"]
[Result "0-1"]
[Annotator "NA"]
[ECO "D37"]
[WhiteElo "1689"]
[BlackElo "1654"]
[PlyCount "28"]
[EventDate "2025.04.11"]
[EventType "swiss"]
[EventCountry "FAI"]
[SourceTitle "playchess.com"]
[Source "ChessBase"]
[SourceQuality "1"]
[TimeControl "40/5400+30:900+30"]

1. d4 {[%emt 0:00:10]} d5 {[%emt 0:00:12]} 2. c4 {[%emt 0:00:13]} e6 {[%emt 0:00:15]} 3. Nf3 {[%emt 0:00:39]} Nf6 {[%emt 0:00:34]} 4. e3 {[%emt 0:00:54]} Be7 {[%emt 0:01:18]} 5. Nc3 {[%emt 0:01:03]} O-O {[%emt 0:00:54]} 6. Qc2 {[%emt 0:03:54]} b6 {[%emt 0:02:21]} 7. Bd2 {[%emt 0:03:18]} Bb7 {[%emt 0:01:39]} 8. O-O-O {[%emt 0:05:34]} Nbd7 {[%emt 0:02:23]} 9. Bd3 {[%emt 0:05:50]} h6 {[%emt 0:04:22]} 10. h3 {[%emt 0:05:02]} Rc8 {[%emt 0:02:48]} 11. Rhg1 {[%emt 0:07:13]} c5 {[%emt 0:04:38]} 12. cxd5 {[%emt 0:10:23]} Nxd5 {[%emt 0:08:15]} 13. dxc5 {[%emt 0:08:20]} Nxc5 {[%emt 0:03:08]} 14. e4 {[%emt 0:11:19]} Nb4 {[%emt 0:01:47]} 0-1

[Event "Faroese-ch Open 2025"]
[Site "Torshavn"]
[Date "2025.04.13"]
[Round "2.3"]
[White "Logv, Hanus a"]
[Black "Al-Jay, Zaid"]
[Result "1-0"]
[Annotator "NA"]
[ECO "C01"]
[WhiteElo "1656"]
[BlackElo "1689"]
[PlyCount "75"]
[EventDate "2025.04.11"]
[EventType "swiss"]
[EventCountry "FAI"]
[SourceTitle "playchess.com"]
[Source "ChessBase"]
[SourceQuality "1"]
[TimeControl "40/5400+30:900+30"]

1. e4 {[%emt 0:00:02]} e6 {[%emt 0:00:10]} 2. d4 {[%emt 0:00:12]} d5 {[%emt 0:00:07]} 3. exd5 {[%emt 0:01:02]} exd5 {[%emt 0:00:07]} 4. Bf4 {[%emt 0:00:21]} Nc6 {[%emt 0:01:15]} 5. Nf3 {[%emt 0:00:21]} Bd6 {[%emt 0:01:19]} 6. Bg3 {[%emt 0:02:28]} Bf5 {[%emt 0:01:08]} 7. Bd3 {[%emt 0:01:11]} Nge7 {[%emt 0:03:24]} 8. O-O {[%emt 0:00:30]} Qd7 {[%emt 0:02:37]} 9. Re1 {[%emt 0:02:25]} f6 {[%emt 0:01:27]} 10. Bxf5 {[%emt 0:02:37]} Qxf5 {[%emt 0:00:36]} 11. Bxd6 {[%emt 0:04:27]} cxd6 {[%emt 0:00:12]} 12. Nc3 {[%emt 0:04:11]} Kd7 {[%emt 0:01:21]} 13. Ne2 {[%emt 0:09:06]} Nb4 {[%emt 0:02:12]} 14. Ng3 {[%emt 0:00:31]} Qxc2 {[%emt 0:00:48]} 15. Rxe7+ {[%emt 0:00:57]} Kxe7 {[%emt 0:01:33]} 16. Qe1+ {[%emt 0:00:11]} Kd7 {[%emt 0:01:25]} 17. Qxb4 {[%emt 0:00:09]} b6 {[%emt 0:00:49]} 18. Qb5+ {[%emt 0:15:38]} Qc6 {[%emt 0:00:52]} 19. Qxc6+ {[%emt 0:00:26]} Kxc6 {[%emt 0:00:06]} 20. Nf5 {[%emt 0:03:19]} Rhe8 {[%emt 0:05:06]} 21. Nxg7 {[%emt 0:06:43]} Re2 {[%emt 0:00:34]} 22. Nf5 {[%emt 0:03:07]} Rxb2 {[%emt 0:02:56]} 23. Ne7+ {[%emt 0:00:33]} Kb5 {[%emt 0:02:26]} 24. Nxd5 {[%emt 0:01:53]} Rc8 {[%emt 0:00:26]} 25. Ne3 {[%emt 0:04:39]} Ka4 {[%emt 0:01:59]} 26. Nd1 {[%emt 0:04:33]} Re2 {[%emt 0:05:19]} 27. Kf1 {[%emt 0:00:59]} Rcc2 {[%emt 0:00:59]} 28. Nc3+ {[%emt 0:00:16]} Rxc3 {[%emt 0:00:45]} 29. Kxe2 {[%emt 0:00:10]} Ka3 {[%emt 0:00:15]} 30. Kd2 {[%emt 0:01:41]} Rc4 {[%emt 0:00:45]} 31. Kd3 {[%emt 0:01:01]} d5 {[%emt 0:00:43]} 32. Nd2 {[%emt 0:01:11]} Rc6 {[%emt 0:01:22]} 33. Rb1 {[%emt 0:09:54]} Kxa2 {[%emt 0:01:14]} 34. Rb5 {[%emt 0:01:24]} a5 {[%emt 0:01:05]} 35. Rxd5 {[%emt 0:01:08]} a4 {[%emt 0:00:44]} 36. Rb5 {[%emt 0:00:56]} a3 {[%emt 0:00:55]} 37. Nc4 {[%emt 0:00:23]} Re6 {[%emt 0:01:59]} 38. d5 {[%emt 0:03:10]} 1-0

[Event "Faroese-ch Open 2025"]
[Site "Torshavn"]
[Date "2025.04.13"]
[Round "2.4"]
[White "Simonsen, Johannes"]
[Black "Joensen, Sigurd"]
[Result "1-0"]
[Annotator "NA"]
[ECO "C41"]
[WhiteElo "1608"]
[BlackElo "1619"]
[PlyCount "81"]
[EventDate "2025.04.11"]
[EventType "swiss"]
[EventCountry "FAI"]
[SourceTitle "playchess.com"]
[Source "ChessBase"]
[SourceQuality "1"]
[TimeControl "40/5400+30:900+30"]

1. e4 {[%emt 0:00:11]} e5 {[%emt 0:00:14]} 2. Nf3 {[%emt 0:00:11]} d6 {[%emt 0:00:43]} 3. d4 {[%emt 0:00:09]} Be7 {[%emt 0:01:39]} 4. dxe5 {[%emt 0:01:32]} Bg4 {[%emt 0:00:58]} 5. exd6 {[%emt 0:00:46]} Qxd6 {[%emt 0:02:52]} 6. Bd3 {[%emt 0:05:36]} Nd7 {[%emt 0:03:47]} 7. Nc3 {[%emt 0:05:52]} Ne5 {[%emt 0:01:43]} 8. Bb5+ {[%emt 0:03:04]} c6 {[%emt 0:02:00]} 9. Qxd6 {[%emt 0:00:12]} Bxd6 {[%emt 0:00:33]} 10. Nxe5 {[%emt 0:00:21]} Bxe5 {[%emt 0:00:52]} 11. Be2 {[%emt 0:00:35]} Bxc3+ {[%emt 0:01:15]} 12. bxc3 {[%emt 0:00:11]} Bxe2 {[%emt 0:01:14]} 13. Kxe2 {[%emt 0:00:10]} O-O-O {[%emt 0:00:34]} 14. Bf4 {[%emt 0:02:14]} Ne7 {[%emt 0:06:01]} 15. Rhd1 {[%emt 0:04:48]} Ng6 {[%emt 0:03:13]} 16. Be3 {[%emt 0:04:34]} b6 {[%emt 0:09:16]} 17. Rd3 {[%emt 0:04:24]} c5 {[%emt 0:11:29]} 18. Rad1 {[%emt 0:04:55]} Ne5 {[%emt 0:01:32]} 19. Rd5 {[%emt 0:03:33]} Rhe8 {[%emt 0:13:31]} 20. Rxd8+ {[%emt 0:06:41]} Rxd8 {[%emt 0:01:00]} 21. Rxd8+ {[%emt 0:00:13]} Kxd8 {[%emt 0:01:02]} 22. h3 {[%emt 0:00:46]} Kd7 {[%emt 0:03:32]} 23. f4 {[%emt 0:03:29]} Nc4 {[%emt 0:02:49]} 24. g4 {[%emt 0:04:00]} Kc6 {[%emt 0:08:00]} 25. Bc1 {[%emt 0:03:40]} Nd6 {[%emt 0:02:12]} 26. Ke3 {[%emt 0:02:13]} Kb5 {[%emt 0:04:14]} 27. e5 {[%emt 0:01:25]} Ne8 {[%emt 0:01:49]} 28. Kd3 {[%emt 0:00:48]} Nc7 {[%emt 0:00:51]} 29. c4+ {[%emt 0:01:13]} Kc6 {[%emt 0:04:04]} 30. f5 {[%emt 0:00:27]} Ne8 {[%emt 0:03:05]} 31. Ke4 {[%emt 0:03:33]} g6 {[%emt 0:02:49]} 32. Bf4 {[%emt 0:00:31]} f6 {[%emt 0:02:30]} 33. fxg6 {[%emt 0:04:03]} hxg6 {[%emt 0:00:47]} 34. exf6 {[%emt 0:02:23]} Nxf6+ {[%emt 0:00:06]} 35. Ke5 {[%emt 0:00:23]} Nh7 {[%emt 0:01:59]} 36. h4 {[%emt 0:00:59]} b5 {[%emt 0:02:01]} 37. cxb5+ {[%emt 0:00:46]} Kxb5 {[%emt 0:00:02]} 38. Ke6 {[%emt 0:00:27]} Kb4 {[%emt 0:00:12]} 39. Kf7 {[%emt 0:00:33]} g5 {[%emt 0:02:07]} 40. hxg5 {[%emt 0:00:00]} Nxg5+ {[%emt 0:00:00]} 41. Bxg5 {[%emt 0:01:12]} 1-0

[Event "Faroese-ch Open 2025"]
[Site "Torshavn"]
[Date "2025.04.14"]
[Round "3.1"]
[White "Kosini, Bogi a"]
[Black "Logv, Hanus a"]
[Result "1/2-1/2"]
[Annotator "NA RC"]
[ECO "C55"]
[WhiteElo "1654"]
[BlackElo "1656"]
[PlyCount "164"]
[EventDate "2025.04.11"]
[EventType "swiss"]
[EventCountry "FAI"]
[SourceTitle "playchess.com"]
[Source "ChessBase"]
[SourceQuality "1"]
[TimeControl "40/5400+30:900+30"]

1. e4 {[%emt 0:00:23]} e5 {[%emt 0:00:02]} 2. Nc3 {[%emt 0:00:15]} Nc6 {[%emt 0:00:13]} 3. Bc4 {[%emt 0:00:19]} Nf6 {[%emt 0:00:10]} 4. d3 {[%emt 0:00:18]} Be7 {[%emt 0:01:07]} 5. Nf3 {[%emt 0:00:50]} d6 {[%emt 0:00:44]} 6. h3 {[%emt 0:01:02]} O-O {[%emt 0:00:09]} 7. O-O {[%emt 0:00:20]} Be6 {[%emt 0:00:32]} 8. Bb3 {[%emt 0:00:22]} h6 {[%emt 0:04:14]} 9. Ne2 {[%emt 0:04:35]} d5 {[%emt 0:01:44]} 10. Ng3 {[%emt 0:09:11]} Qd7 {[%emt 0:02:13]} 11. Nxe5 {[%emt 0:20:01]} Nxe5 {[%emt 0:02:57]} 12. f4 {[%emt 0:00:14]} Bxh3 {[%emt 0:27:50]} 13. fxe5 {[%emt 0:03:08]} Bg4 {[%emt 0:01:14]} 14. Qe1 {[%emt 0:01:45]} Nh5 {[%emt 0:05:22]} 15. Nf5 {[%emt 0:07:05]} dxe4 {[%emt 0:08:21]} 16. Qxe4 {[%emt 0:08:24]} Bxf5 {[%emt 0:02:15]} 17. Qxf5 {[%emt 0:00:45]} Qd4+ {[%emt 0:06:52]} 18. Kh2 {[%emt 0:14:34]} Qh4+ {[%emt 0:04:04]} 19. Qh3 {[%emt 0:00:56]} Qxh3+ {[%emt 0:08:29]} 20. Kxh3 {[%emt 0:00:48]} g5 {[%emt 0:02:01]} 21. Kg4 {[%emt 0:01:53]} Ng7 {[%emt 0:01:05]} 22. Bd2 {[%emt 0:02:54]} Rad8 {[%emt 0:02:15]} 23. Rf3 {[%emt 0:03:34]} Rd4+ {[%emt 0:00:49]} 24. Kg3 {[%emt 0:00:35]} Nh5+ {[%emt 0:02:49]} 25. Kf2 {[%emt 0:01:18]} Kg7 {[%emt 0:03:48]} 26. Bc3 {[%emt 0:05:06]} Rg4 {[%emt 0:02:56]} 27. d4 {[%emt 0:04:13]} c6 {[%emt 0:01:59]} 28. Rh1 {[%emt 0:01:38]} Nf4 {[%emt 0:00:57]} 29. g3 {[%emt 0:01:39]} Nd5 {[%emt 0:00:59]} 30. Bxd5 {[%emt 0:00:52]} cxd5 {[%emt 0:00:02]} 31. Ke3 {[%emt 0:01:31]} f6 {[%emt 0:02:14]} 32. exf6+ {[%emt 0:00:42]} Rxf6 {[%emt 0:01:22]} 33. Rxf6 {[%emt 0:01:27]} Bxf6 {[%emt 0:00:04]} 34. Kf3 {[%emt 0:01:31]} Re4 {[%emt 0:00:18]} 35. Rd1 {[%emt 0:00:20]} Kg6 {[%emt 0:00:34]} 36. g4 {[%emt 0:01:20]} h5 {[%emt 0:01:08]} 37. gxh5+ {[%emt 0:00:32]} Kxh5 {[%emt 0:00:01]} 38. Rh1+ {[%emt 0:00:13]} Rh4 {[%emt 0:01:10]} 39. Rd1 {[%emt 0:02:17]} Rh3+ {[%emt 0:00:40]} 40. Kg2 {[%emt 0:00:00]} Re3 {[%emt 0:00:00]} 41. Bd2 {[%emt 0:01:29]} Re2+ {[%emt 0:03:03]} 42. Kf3 {[%emt 0:00:23]} Rh2 {[%emt 0:01:57]} 43. Kg3 {[%emt 0:00:47]} Rh4 {[%emt 0:00:47]} 44. c3 {[%emt 0:00:28]} g4 {[%emt 0:01:56]} 45. Rf1 {[%emt 0:01:53]} Rh3+ {[%emt 0:00:50]} 46. Kg2 {[%emt 0:01:00]} Rf3 {[%emt 0:09:36]} 47. Rxf3 {[%emt 0:00:44]} gxf3+ {[%emt 0:00:02]} 48. Kxf3 {[%emt 0:00:03]} Kg6 {[%emt 0:00:35]} 49. Kg4 {[%emt 0:00:35]} Bd8 {[%emt 0:01:42]} 50. b3 {[%emt 0:01:24]} b5 {[%emt 0:01:06]} 51. Bf4 {[%emt 0:02:29]} Bf6 {[%emt 0:01:52]} 52. Be5 {[%emt 0:05:04]} Bg5 {[%emt 0:01:20]} 53. Bf4 {[%emt 0:01:14]} Bf6 {[%emt 0:00:13]} 54. Kf3 {[%emt 0:01:23]} Kf5 {[%emt 0:00:24]} 55. Ke3 {[%emt 0:00:43]} Bg7 {[%emt 0:01:07]} 56. Bd6 {[%emt 0:00:31]} Ke6 {[%emt 0:00:35]} 57. Bc5 {[%emt 0:00:28]} a6 {[%emt 0:00:08]} 58. Kd3 {[%emt 0:00:21]} Bf6 {[%emt 0:00:55]} 59. a4 {[%emt 0:01:25]} bxa4 {[%emt 0:00:26]} 60. bxa4 {[%emt 0:00:05]} Bd8 {[%emt 0:00:21]} 61. c4 {[%emt 0:01:28]} Ba5 {[%emt 0:00:35]} 62. Ba7 {[%emt 0:00:41]} Kd6 {[%emt 0:00:41]} 63. Bb8+ {[%emt 0:00:51]} Kc6 {[%emt 0:00:32]} 64. Bf4 {[%emt 0:01:25]} Be1 {[%emt 0:00:28]} 65. c5 {[%emt 0:00:33]} Ba5 {[%emt 0:00:28]} 66. Ke3 {[%emt 0:00:16]} Bc3 {[%emt 0:00:14]} 67. Be5 {[%emt 0:00:32]} Ba5 {[%emt 0:00:33]} 68. Kf4 {[%emt 0:00:12]} Bd2+ {[%emt 0:00:28]} 69. Kf5 {[%emt 0:00:09]} Ba5 {[%emt 0:00:08]} 70. Ke6 {[%emt 0:00:17]} Bd8 {[%emt 0:00:27]} 71. Bd6 {[%emt 0:00:56]} Ba5 {[%emt 0:00:23]} 72. Ke7 {[%emt 0:00:25]} Bc3 {[%emt 0:00:20]} 73. Be5 {[%emt 0:00:10]} Ba5 {[%emt 0:00:10]} 74. Bf6 {[%emt 0:00:36]} Bc7 {[%emt 0:01:09]} 75. Ke8 {[%emt 0:00:43]} Ba5 {[%emt 0:01:13]} 76. Bg5 {[%emt 0:01:10]} Bc3 {[%emt 0:00:18]} 77. Bf6 {[%emt 0:00:07]} Ba5 {[%emt 0:00:08]} 78. Be5 {[%emt 0:02:48]} Bc3 {[%emt 0:00:07]} 79. Kd8 {[%emt 0:00:03]} Bb4 {[%emt 0:00:09]} 80. Kc8 {[%emt 0:00:03]} a5 {[%emt 0:00:56]} 81. Kb8 {[%emt 0:00:07]} Bc3 {[%emt 0:00:01]} 82. Kc8 {[%emt 0:00:03]} Bb4 1/2-1/2

[Event "Faroese-ch Open 2025"]
[Site "Torshavn"]
[Date "2025.04.14"]
[Round "3.2"]
[White "Simonsen, Johannes"]
[Black "Staksberg, Luca Eydun"]
[Result "0-1"]
[Annotator "NA RC"]
[ECO "C01"]
[WhiteElo "1608"]
[BlackElo "1692"]
[PlyCount "146"]
[EventDate "2025.04.11"]
[EventType "swiss"]
[EventCountry "FAI"]
[SourceTitle "playchess.com"]
[Source "ChessBase"]
[SourceQuality "1"]
[TimeControl "40/5400+30:900+30"]

1. e4 {[%emt 0:00:09]} e6 {[%emt 0:00:20]} 2. d4 {[%emt 0:00:29]} d5 {[%emt 0:00:07]} 3. exd5 {[%emt 0:00:08]} exd5 {[%emt 0:00:07]} 4. Nf3 {[%emt 0:00:15]} Bd6 {[%emt 0:00:59]} 5. Bd3 {[%emt 0:00:16]} Ne7 {[%emt 0:03:28]} 6. c3 {[%emt 0:00:22]} h6 {[%emt 0:03:20]} 7. Be3 {[%emt 0:03:21]} c6 {[%emt 0:04:34]} 8. h3 {[%emt 0:00:36]} Bf5 {[%emt 0:02:48]} 9. O-O {[%emt 0:01:38]} Nd7 {[%emt 0:05:27]} 10. Re1 {[%emt 0:00:30]} O-O {[%emt 0:03:30]} 11. Be2 {[%emt 0:07:51]} Qc7 {[%emt 0:01:29]} 12. Nbd2 {[%emt 0:03:15]} Nf6 {[%emt 0:04:13]} 13. Ne5 {[%emt 0:04:08]} Bxe5 {[%emt 0:07:41]} 14. dxe5 {[%emt 0:00:08]} Qxe5 {[%emt 0:06:26]} 15. Bd4 {[%emt 0:01:31]} Qd6 {[%emt 0:01:49]} 16. Nf3 {[%emt 0:01:31]} Ng6 {[%emt 0:01:03]} 17. c4 {[%emt 0:03:49]} b6 {[%emt 0:05:20]} 18. Rc1 {[%emt 0:01:35]} dxc4 {[%emt 0:04:09]} 19. Bxc4 {[%emt 0:01:34]} Rfd8 {[%emt 0:05:54]} 20. Qb3 {[%emt 0:00:38]} Nd5 {[%emt 0:04:51]} 21. Rcd1 {[%emt 0:09:57]} f6 {[%emt 0:05:25]} 22. a4 {[%emt 0:02:44]} Kh8 {[%emt 0:00:53]} 23. h4 {[%emt 0:02:10]} Bg4 {[%emt 0:01:18]} 24. g3 {[%emt 0:06:37]} Nge7 {[%emt 0:05:36]} 25. Be2 {[%emt 0:06:32]} Bxf3 {[%emt 0:04:48]} 26. Bxf3 {[%emt 0:02:02]} Qc7 {[%emt 0:00:48]} 27. Qc4 {[%emt 0:03:39]} c5 {[%emt 0:03:30]} 28. Bc3 {[%emt 0:06:56]} Nxc3 {[%emt 0:03:46]} 29. bxc3 {[%emt 0:00:21]} Rxd1 {[%emt 0:00:56]} 30. Rxd1 {[%emt 0:00:10]} Rd8 {[%emt 0:01:12]} 31. Re1 {[%emt 0:00:24]} Nc6 {[%emt 0:01:15]} 32. Qe4 {[%emt 0:02:02]} Ne5 {[%emt 0:02:20]} 33. Bd1 {[%emt 0:00:24]} Qc6 {[%emt 0:01:02]} 34. Qxc6 {[%emt 0:09:01]} Nxc6 {[%emt 0:00:01]} 35. f4 {[%emt 0:00:35]} Kg8 {[%emt 0:01:48]} 36. Be2 {[%emt 0:00:15]} Ne7 {[%emt 0:01:16]} 37. Bb5 {[%emt 0:01:35]} Kf8 {[%emt 0:00:49]} 38. Kf2 {[%emt 0:01:03]} Kf7 {[%emt 0:02:01]} 39. Kf3 {[%emt 0:00:15]} f5 {[%emt 0:00:57]} 40. g4 {[%emt 0:00:00]} fxg4+ {[%emt 0:00:00]} 41. Kxg4 {[%emt 0:02:00]} Nd5 {[%emt 0:07:16]} 42. Bc4 {[%emt 0:01:29]} Kf8 {[%emt 0:00:41]} 43. Re5 {[%emt 0:01:56]} Nxc3 {[%emt 0:05:16]} 44. Rf5+ {[%emt 0:00:20]} Ke8 {[%emt 0:01:06]} 45. Rf7 {[%emt 0:00:27]} Rd7 {[%emt 0:00:31]} 46. Rf5 {[%emt 0:01:03]} Re7 {[%emt 0:01:39]} 47. Kh5 {[%emt 0:00:36]} Ne4 {[%emt 0:01:15]} 48. Bb5+ {[%emt 0:01:07]} Kd8 {[%emt 0:00:02]} 49. Rf8+ {[%emt 0:00:39]} Kc7 {[%emt 0:00:08]} 50. Ba6 {[%emt 0:01:28]} Nd6 {[%emt 0:00:49]} 51. Kg6 {[%emt 0:01:24]} c4 {[%emt 0:02:44]} 52. f5 {[%emt 0:00:11]} b5 {[%emt 0:01:45]} 53. axb5 {[%emt 0:00:19]} c3 {[%emt 0:00:43]} 54. b6+ {[%emt 0:00:17]} axb6 {[%emt 0:00:27]} 55. Bd3 {[%emt 0:00:16]} Re3 {[%emt 0:00:28]} 56. Bc2 {[%emt 0:00:35]} Rg3+ {[%emt 0:00:17]} 57. Kh7 {[%emt 0:00:57]} b5 {[%emt 0:00:55]} 58. f6 {[%emt 0:01:11]} gxf6 {[%emt 0:00:22]} 59. Rxf6 {[%emt 0:00:19]} Rg2 {[%emt 0:00:30]} 60. Bb3 {[%emt 0:00:47]} Rb2 {[%emt 0:00:39]} 61. Bd1 {[%emt 0:00:31]} c2 {[%emt 0:00:24]} 62. Bxc2 {[%emt 0:00:16]} Rxc2 {[%emt 0:00:02]} 63. Rf3 {[%emt 0:00:36]} h5 {[%emt 0:00:30]} 64. Kg6 {[%emt 0:00:31]} Rc5 {[%emt 0:00:38]} 65. Rb3 {[%emt 0:00:54]} Kb6 {[%emt 0:00:28]} 66. Kf6 {[%emt 0:00:13]} Nc4 {[%emt 0:00:46]} 67. Ke6 {[%emt 0:00:39]} Ka5 {[%emt 0:00:25]} 68. Kf6 {[%emt 0:00:17]} b4 {[%emt 0:00:14]} 69. Kg6 {[%emt 0:00:08]} Ka4 {[%emt 0:00:13]} 70. Rg3 {[%emt 0:00:32]} b3 {[%emt 0:00:23]} 71. Rg5 {[%emt 0:00:11]} Rxg5+ {[%emt 0:00:30]} 72. Kxg5 {[%emt 0:00:07]} b2 {[%emt 0:00:11]} 73. Kxh5 {[%emt 0:00:10]} b1=Q {[%emt 0:00:11]} 0-1

[Event "Faroese-ch Open 2025"]
[Site "Torshavn"]
[Date "2025.04.14"]
[Round "3.3"]
[White "Morkore, Mortan"]
[Black "Anthoniussen, Mannbjorn"]
[Result "1-0"]
[Annotator "NA RC"]
[ECO "C02"]
[WhiteElo "1681"]
[BlackElo "1689"]
[PlyCount "77"]
[EventDate "2025.04.11"]
[EventType "swiss"]
[EventCountry "FAI"]
[SourceTitle "playchess.com"]
[Source "ChessBase"]
[SourceQuality "1"]
[TimeControl "40/5400+30:900+30"]

1. e4 {[%emt 0:01:46]} e6 {[%emt 0:00:15]} 2. d4 {[%emt 0:00:26]} d5 {[%emt 0:00:22]} 3. e5 {[%emt 0:01:57]} c5 {[%emt 0:01:10]} 4. c3 {[%emt 0:01:16]} Nc6 {[%emt 0:01:00]} 5. Nf3 {[%emt 0:00:20]} Qb6 {[%emt 0:02:29]} 6. b3 {[%emt 0:08:06]} cxd4 {[%emt 0:07:32]} 7. Nxd4 {[%emt 0:00:05]} Bc5 {[%emt 0:07:13]} 8. Be3 {[%emt 0:03:45]} Nxe5 {[%emt 0:03:56]} 9. b4 {[%emt 0:02:44]} Bf8 {[%emt 0:12:52]} 10. Nb5 {[%emt 0:14:48]} Qd8 {[%emt 0:10:16]} 11. Qh5 {[%emt 0:09:11]} a6 {[%emt 0:03:27]} 12. Qxe5 {[%emt 0:01:09]} axb5 {[%emt 0:00:26]} 13. Bxb5+ {[%emt 0:00:09]} Bd7 {[%emt 0:00:23]} 14. Bxd7+ {[%emt 0:04:16]} Qxd7 {[%emt 0:00:12]} 15. O-O {[%emt 0:05:48]} Nf6 {[%emt 0:01:44]} 16. Rd1 {[%emt 0:03:50]} Ng4 {[%emt 0:10:53]} 17. Qd4 {[%emt 0:03:51]} Nxe3 {[%emt 0:00:58]} 18. fxe3 {[%emt 0:01:27]} Rc8 {[%emt 0:06:49]} 19. e4 {[%emt 0:02:00]} f6 {[%emt 0:03:55]} 20. exd5 {[%emt 0:02:12]} e5 {[%emt 0:00:15]} 21. Qb6 {[%emt 0:04:13]} Bd6 {[%emt 0:01:49]} 22. a4 {[%emt 0:02:59]} Ra8 {[%emt 0:03:27]} 23. a5 {[%emt 0:03:57]} Ra6 {[%emt 0:01:57]} 24. Qf2 {[%emt 0:00:47]} O-O {[%emt 0:01:34]} 25. Nd2 {[%emt 0:02:18]} Rc8 {[%emt 0:02:11]} 26. Ne4 {[%emt 0:00:57]} Bb8 {[%emt 0:03:29]} 27. Nc5 {[%emt 0:02:20]} Rxc5 {[%emt 0:01:15]} 28. bxc5 {[%emt 0:00:05]} Ba7 {[%emt 0:00:24]} 29. Kf1 {[%emt 0:00:59]} Qb5+ {[%emt 0:00:23]} 30. Ke1 {[%emt 0:04:51]} Bxc5 {[%emt 0:01:18]} 31. Qe2 {[%emt 0:02:10]} Qd7 {[%emt 0:01:38]} 32. Qc4 {[%emt 0:02:00]} Bd6 {[%emt 0:03:07]} 33. Rdb1 {[%emt 0:00:44]} e4 {[%emt 0:02:18]} 34. Qxe4 {[%emt 0:04:25]} Bxh2 {[%emt 0:01:07]} 35. Rxb7 {[%emt 0:01:11]} f5 {[%emt 0:02:22]} 36. Rxd7 {[%emt 0:00:55]} fxe4 {[%emt 0:00:09]} 37. Re7 {[%emt 0:00:51]} Bg3+ {[%emt 0:00:18]} 38. Ke2 {[%emt 0:00:12]} Rf6 {[%emt 0:00:09]} 39. Rf1 {[%emt 0:00:31]} 1-0